[Event "*** Titled Tuesday Blitz"]
[Site "Chess.com"]
[Date "2018.08.07"]
[Round "4"]
[White "NikolaGry"]
[Black "gkchesstiger"]
[Result "0-1"]
[WhiteElo "2521"]
[BlackElo "2772"]
[TimeControl "180+2"]
[EndTime "13:48:44 PDT"]
[Termination "gkchesstiger won on time"]

1. Nf3 {[%clk 0:03:01.9]} 1... Nf6 {[%clk 0:03:00.4]} 2. d4 {[%clk 0:02:58]}
2... g6 {[%clk 0:03:01.1]} 3. c4 {[%clk 0:02:58.5]} 3... Bg7 {[%clk 0:03:02.2]}
4. c5 {[%clk 0:02:59.2]} 4... O-O {[%clk 0:03:00.8]} 5. Nc3 {[%clk 0:03:00]}
5... d6 {[%clk 0:03:02]} 6. cxd6 {[%clk 0:03:00.2]} 6... exd6 {[%clk 0:02:57]}
7. e3 {[%clk 0:02:57.7]} 7... d5 {[%clk 0:02:56.8]} 8. Be2 {[%clk 0:02:57.2]}
8... c6 {[%clk 0:02:57.6]} 9. O-O {[%clk 0:02:57.2]} 9... a5 {[%clk 0:02:58.7]}
10. a3 {[%clk 0:02:53.8]} 10... Re8 {[%clk 0:02:58]} 11. Bd2 {[%clk 0:02:53.1]}
11... Bf8 {[%clk 0:02:55.7]} 12. Rb1 {[%clk 0:02:48.5]} 12... Nbd7 {[%clk
0:02:56.1]} 13. b4 {[%clk 0:02:43.3]} 13... axb4 {[%clk 0:02:57]} 14. axb4
{[%clk 0:02:44.3]} 14... b5 {[%clk 0:02:56.6]} 15. Qb3 {[%clk 0:02:40.2]} 15...
Nb6 {[%clk 0:02:54]} 16. Ne5 {[%clk 0:02:40.2]} 16... Nc4 {[%clk 0:02:51.8]} 17.
Bxc4 {[%clk 0:01:47.7]} 17... bxc4 {[%clk 0:02:47.6]} 18. Qb2 {[%clk 0:01:43]}
18... Bf5 {[%clk 0:02:37.7]} 19. Ra1 {[%clk 0:01:41.5]} 19... Qb6 {[%clk
0:02:37.1]} 20. Na4 {[%clk 0:01:33]} 20... Qb5 {[%clk 0:02:34]} 21. Nc5 {[%clk
0:01:22.3]} 21... Ne4 {[%clk 0:02:18.6]} 22. Nxe4 {[%clk 0:01:07.5]} 22... Bxe4
{[%clk 0:02:18.9]} 23. Rxa8 {[%clk 0:00:55.9]} 23... Rxa8 {[%clk 0:02:17.8]} 24.
Ra1 {[%clk 0:00:49.9]} 24... Ra4 {[%clk 0:02:09.3]} 25. Nd7 {[%clk 0:00:44.1]}
25... Qa6 {[%clk 0:01:53.9]} 26. Rxa4 {[%clk 0:00:37.1]} 26... Qxa4 {[%clk
0:01:54.3]} 27. f3 {[%clk 0:00:15.8]} 27... Qd1+ {[%clk 0:01:54.2]} 28. Kf2
{[%clk 0:00:14.2]} 28... Bc2 {[%clk 0:01:53.7]} 29. Qc3 {[%clk 0:00:12.3]} 29...
Be7 {[%clk 0:01:51.3]} 30. Ne5 {[%clk 0:00:11.8]} 30... Kg7 {[%clk 0:01:41.2]}
31. Nxc6 {[%clk 0:00:10.2]} 31... Bh4+ {[%clk 0:01:40.2]} 32. g3 {[%clk
0:00:10.1]} 32... Qh1 {[%clk 0:01:13]} 33. gxh4 {[%clk 0:00:02.1]} 33... Qxh2+
{[%clk 0:01:13]} 34. Ke1 {[%clk 0:00:03.1]} 34... Bd3 {[%clk 0:01:13.7]} 35. Kd1
{[%clk 0:00:03.1]} 35... Qh1+ {[%clk 0:00:47.4]} 36. Be1 {[%clk 0:00:04.1]}
36... Qxf3+ {[%clk 0:00:48]} 37. Kc1 {[%clk 0:00:05.6]} 37... Qxe3+ {[%clk
0:00:48.3]} 38. Bd2 {[%clk 0:00:06.2]} 38... Qg1+ {[%clk 0:00:45.7]} 39. Be1
{[%clk 0:00:07.4]} 39... Qh2 {[%clk 0:00:44.1]} 40. b5 {[%clk 0:00:07.9]} 40...
Qa2 {[%clk 0:00:27]} 0-1

[Event "*** Titled Tuesday Blitz"]
[Site "Chess.com"]
[Date "2018.08.07"]
[Round "4"]
[White "orrbaverlekszarnyon"]
[Black "Passacaglia23"]
[Result "0-1"]
[WhiteElo "2300"]
[BlackElo "2273"]
[TimeControl "180+2"]
[EndTime "13:48:44 PDT"]
[Termination "Passacaglia23 won by resignation"]

1. e4 {[%clk 0:03:00.7]} 1... c6 {[%clk 0:03:00.9]} 2. d4 {[%clk 0:02:58.2]}
2... d5 {[%clk 0:03:02.8]} 3. exd5 {[%clk 0:03:00.1]} 3... cxd5 {[%clk
0:03:03.9]} 4. c4 {[%clk 0:03:01.2]} 4... Nf6 {[%clk 0:03:04.5]} 5. Nc3 {[%clk
0:03:02.6]} 5... e6 {[%clk 0:03:05.6]} 6. Nf3 {[%clk 0:03:03.6]} 6... Bb4 {[%clk
0:03:06.9]} 7. Bd3 {[%clk 0:03:03.9]} 7... dxc4 {[%clk 0:03:06.5]} 8. Bxc4
{[%clk 0:03:05.8]} 8... O-O {[%clk 0:03:07.8]} 9. O-O {[%clk 0:03:06.4]} 9... b6
{[%clk 0:03:09.2]} 10. Bg5 {[%clk 0:02:56.1]} 10... Bb7 {[%clk 0:03:09.4]} 11.
Ne5 {[%clk 0:02:51.8]} 11... Nc6 {[%clk 0:02:16]} 12. Ng4 {[%clk 0:02:35.6]}
12... Be7 {[%clk 0:02:15.5]} 13. Bxf6 {[%clk 0:02:33.9]} 13... Bxf6 {[%clk
0:02:16.2]} 14. Nxf6+ {[%clk 0:02:34.5]} 14... Qxf6 {[%clk 0:02:17.1]} 15. d5
{[%clk 0:02:35.7]} 15... Na5 {[%clk 0:02:17.9]} 16. Qe2 {[%clk 0:02:32.7]} 16...
Nxc4 {[%clk 0:02:15.4]} 17. Qxc4 {[%clk 0:02:34.6]} 17... exd5 {[%clk
0:02:01.9]} 18. Nxd5 {[%clk 0:02:35.3]} 18... Qe6 {[%clk 0:01:13.3]} 19. Ne3
{[%clk 0:02:32.5]} 19... Qxc4 {[%clk 0:01:12.3]} 20. Nxc4 {[%clk 0:02:34.4]}
20... Rac8 {[%clk 0:01:13.5]} 21. Ne3 {[%clk 0:02:35.4]} 21... Rfd8 {[%clk
0:01:10.1]} 22. Rfd1 {[%clk 0:02:36.5]} 22... f6 {[%clk 0:00:59.7]} 23. Kf1
{[%clk 0:02:32.3]} 23... g6 {[%clk 0:00:58.5]} 24. h4 {[%clk 0:02:24.9]} 24...
h5 {[%clk 0:00:55.3]} 25. g3 {[%clk 0:02:24.6]} 25... Kf7 {[%clk 0:00:55]} 26.
Rxd8 {[%clk 0:02:23.5]} 26... Rxd8 {[%clk 0:00:55.7]} 27. Rc1 {[%clk 0:02:25.1]}
27... Rc8 {[%clk 0:00:50.3]} 28. Rd1 {[%clk 0:02:21]} 28... Bf3 {[%clk
0:00:50.4]} 29. Re1 {[%clk 0:02:01.4]} 29... Rd8 {[%clk 0:00:48.3]} 30. Nc4
{[%clk 0:01:58.3]} 30... b5 {[%clk 0:00:44.4]} 31. Na3 {[%clk 0:01:44.8]} 31...
a6 {[%clk 0:00:34.8]} 32. Nb1 {[%clk 0:01:44.5]} 32... f5 {[%clk 0:00:23.7]} 33.
Rc1 {[%clk 0:01:42.1]} 33... Rd7 {[%clk 0:00:16.7]} 34. Ke1 {[%clk 0:01:42.4]}
34... Re7+ {[%clk 0:00:16.7]} 35. Kf1 {[%clk 0:01:39.7]} 35... Rd7 {[%clk
0:00:18.1]} 36. Ke1 {[%clk 0:01:34.7]} 36... Re7+ {[%clk 0:00:19.1]} 37. Kf1
{[%clk 0:01:35.9]} 37... Re2 {[%clk 0:00:16.6]} 38. Rc3 {[%clk 0:01:31.6]} 38...
Rxb2 {[%clk 0:00:16.3]} 39. Rxf3 {[%clk 0:01:32.3]} 39... Rxb1+ {[%clk 0:00:17]}
40. Kg2 {[%clk 0:01:33.6]} 40... b4 {[%clk 0:00:14]} 41. Rd3 {[%clk 0:01:33.3]}
41... Rb2 {[%clk 0:00:11.1]} 42. Rd7+ {[%clk 0:01:30.3]} 42... Kg8 {[%clk
0:00:12]} 43. Rd6 {[%clk 0:01:30.5]} 43... Rxa2 {[%clk 0:00:10.9]} 44. Rxg6+
{[%clk 0:01:31.7]} 44... Kf7 {[%clk 0:00:09.9]} 45. Rg5 {[%clk 0:01:31.3]} 45...
b3 {[%clk 0:00:08.3]} 46. Rxf5+ {[%clk 0:01:28.9]} 46... Kg6 {[%clk 0:00:09.5]}
47. Rf3 {[%clk 0:01:28.3]} 47... b2 {[%clk 0:00:07.8]} 48. Rb3 {[%clk
0:01:29.4]} 48... a5 {[%clk 0:00:09.1]} 49. Rb6+ {[%clk 0:01:30.4]} 49... Kf7
{[%clk 0:00:10]} 50. g4 {[%clk 0:01:25.9]} 50... hxg4 {[%clk 0:00:08.3]} 51. h5
{[%clk 0:01:27.3]} 51... a4 {[%clk 0:00:09.2]} 52. h6 {[%clk 0:01:28.6]} 52...
a3 {[%clk 0:00:07.1]} 53. Rb7+ {[%clk 0:01:28.6]} 53... Kg8 {[%clk 0:00:07.8]}
54. Rb6 {[%clk 0:01:29.5]} 54... Ra1 {[%clk 0:00:08.5]} 55. Rb8+ {[%clk
0:01:24.8]} 55... Kh7 {[%clk 0:00:09.1]} 56. Rb7+ {[%clk 0:01:25.7]} 56... Kxh6
{[%clk 0:00:10.2]} 57. Kg3 {[%clk 0:01:27.2]} 57... b1=Q {[%clk 0:00:11]} 58.
Rxb1 {[%clk 0:01:28.1]} 58... Rxb1 {[%clk 0:00:12.7]} 59. Kxg4 {[%clk 0:01:30]}
59... a2 {[%clk 0:00:14.1]} 60. f3 {[%clk 0:01:31.9]} 60... a1=Q {[%clk
0:00:15.2]} 61. Kg3 {[%clk 0:01:33.1]} 0-1

[Event "*** Titled Tuesday Blitz"]
[Site "Chess.com"]
[Date "2018.08.07"]
[Round "4"]
[White "AlanZhang"]
[Black "Makalexa"]
[Result "1-0"]
[WhiteElo "1944"]
[BlackElo "2056"]
[TimeControl "180+2"]
[EndTime "13:48:54 PDT"]
[Termination "AlanZhang won on time"]

1. e4 {[%clk 0:03:01.9]} 1... e5 {[%clk 0:02:59.4]} 2. Nf3 {[%clk 0:03:01.9]}
2... Nc6 {[%clk 0:02:58.2]} 3. Bb5 {[%clk 0:03:02.6]} 3... a6 {[%clk 0:02:56.9]}
4. Ba4 {[%clk 0:03:03.5]} 4... Nf6 {[%clk 0:02:53.7]} 5. O-O {[%clk 0:03:03.9]}
5... b5 {[%clk 0:02:49.1]} 6. Bb3 {[%clk 0:03:04]} 6... Be7 {[%clk 0:02:49.4]}
7. Re1 {[%clk 0:03:00.7]} 7... O-O {[%clk 0:02:48.8]} 8. h3 {[%clk 0:03:01.4]}
8... d6 {[%clk 0:02:36.3]} 9. c3 {[%clk 0:03:01.1]} 9... Na5 {[%clk 0:02:26]}
10. Bc2 {[%clk 0:02:58.7]} 10... c5 {[%clk 0:02:25.9]} 11. d4 {[%clk 0:02:57.5]}
11... Nd7 {[%clk 0:02:21.7]} 12. Nbd2 {[%clk 0:02:42.2]} 12... exd4 {[%clk
0:01:59.3]} 13. cxd4 {[%clk 0:02:44.1]} 13... Bb7 {[%clk 0:01:59.8]} 14. Nf1
{[%clk 0:02:34.3]} 14... Re8 {[%clk 0:01:57.5]} 15. Ng3 {[%clk 0:02:33.5]} 15...
g6 {[%clk 0:01:56]} 16. d5 {[%clk 0:02:30.5]} 16... Bf6 {[%clk 0:01:56.6]} 17.
Rb1 {[%clk 0:02:19.4]} 17... Ne5 {[%clk 0:01:56.5]} 18. Nxe5 {[%clk 0:02:13.4]}
18... Bxe5 {[%clk 0:01:56.9]} 19. f4 {[%clk 0:02:11.6]} 19... Bd4+ {[%clk
0:01:57.7]} 20. Be3 {[%clk 0:02:10.8]} 20... Bxe3+ {[%clk 0:01:50.4]} 21. Rxe3
{[%clk 0:02:11.1]} 21... Nc4 {[%clk 0:01:51.7]} 22. Re1 {[%clk 0:02:01.8]} 22...
Qf6 {[%clk 0:01:48]} 23. Qc1 {[%clk 0:00:53.2]} 23... Qd4+ {[%clk 0:01:18]} 24.
Kh2 {[%clk 0:00:50.7]} 24... Qd2 {[%clk 0:01:02.2]} 25. Qxd2 {[%clk 0:00:34.6]}
25... Nxd2 {[%clk 0:01:01.4]} 26. Rbd1 {[%clk 0:00:35]} 26... Nc4 {[%clk
0:00:59.9]} 27. b3 {[%clk 0:00:30.5]} 27... Na3 {[%clk 0:01:00.6]} 28. Bd3
{[%clk 0:00:31.1]} 28... c4 {[%clk 0:01:01.1]} 29. bxc4 {[%clk 0:00:31.6]} 29...
bxc4 {[%clk 0:01:02.1]} 30. Be2 {[%clk 0:00:31.6]} 30... a5 {[%clk 0:00:57.6]}
31. Rc1 {[%clk 0:00:29.5]} 31... Ba6 {[%clk 0:00:57.3]} 32. Rc3 {[%clk
0:00:20.7]} 32... Nb5 {[%clk 0:00:52.4]} 33. Rxc4 {[%clk 0:00:21.8]} 33... h5
{[%clk 0:00:35.6]} 34. Rc6 {[%clk 0:00:18.5]} 34... Reb8 {[%clk 0:00:16.9]} 35.
Rb1 {[%clk 0:00:14.9]} 35... h4 {[%clk 0:00:12.7]} 36. Nf1 {[%clk 0:00:15]}
36... Nd4 {[%clk 0:00:13]} 37. Rxb8+ {[%clk 0:00:14.9]} 37... Rxb8 {[%clk
0:00:14.8]} 38. Bxa6 {[%clk 0:00:15.8]} 38... Nxc6 {[%clk 0:00:14.9]} 39. dxc6
{[%clk 0:00:17]} 39... Rb1 {[%clk 0:00:13.2]} 40. c7 {[%clk 0:00:17.2]} 40...
Rc1 {[%clk 0:00:14.3]} 41. c8=Q+ {[%clk 0:00:17.7]} 41... Rxc8 {[%clk 0:00:10]}
42. Bxc8 {[%clk 0:00:19.6]} 1-0

[Event "*** Titled Tuesday Blitz"]
[Site "Chess.com"]
[Date "2018.08.07"]
[Round "4"]
[White "muran29"]
[Black "Tash_Boy"]
[Result "0-1"]
[WhiteElo "2339"]
[BlackElo "2573"]
[TimeControl "180+2"]
[EndTime "13:49:00 PDT"]
[Termination "Tash_Boy won by resignation"]

1. d4 {[%clk 0:03:01.9]} 1... Nf6 {[%clk 0:02:59.6]} 2. c4 {[%clk 0:03:02.4]}
2... c5 {[%clk 0:03:00.1]} 3. d5 {[%clk 0:03:03.4]} 3... b5 {[%clk 0:03:01.3]}
4. cxb5 {[%clk 0:03:04.6]} 4... a6 {[%clk 0:03:02.5]} 5. Nc3 {[%clk 0:03:06]}
5... axb5 {[%clk 0:03:02.2]} 6. e4 {[%clk 0:03:07.9]} 6... b4 {[%clk 0:03:02.9]}
7. Nb5 {[%clk 0:03:09.3]} 7... Nxe4 {[%clk 0:03:03.6]} 8. Qe2 {[%clk 0:03:10.1]}
8... e5 {[%clk 0:01:41.5]} 9. Qxe4 {[%clk 0:03:00.8]} 9... d6 {[%clk 0:01:41.3]}
10. g4 {[%clk 0:02:59.1]} 10... Qh4 {[%clk 0:01:38.6]} 11. Nc7+ {[%clk
0:02:55.8]} 11... Kd8 {[%clk 0:01:39]} 12. Nxa8 {[%clk 0:02:56.7]} 12... f5
{[%clk 0:01:39.9]} 13. Qe3 {[%clk 0:02:48.2]} 13... Be7 {[%clk 0:01:37.1]} 14.
gxf5 {[%clk 0:02:46]} 14... Bxf5 {[%clk 0:01:37.3]} 15. Nf3 {[%clk 0:02:46.9]}
15... Qh5 {[%clk 0:01:35.9]} 16. Ng5 {[%clk 0:02:42.8]} 16... Rf8 {[%clk
0:01:22.6]} 17. Ne6+ {[%clk 0:02:34.7]} 17... Bxe6 {[%clk 0:01:22.6]} 18. dxe6
{[%clk 0:02:36.6]} 18... Nc6 {[%clk 0:01:23.2]} 19. Be2 {[%clk 0:02:31.4]} 19...
Qf5 {[%clk 0:01:22.1]} 20. Bd3 {[%clk 0:01:33.1]} 20... Qxe6 {[%clk 0:01:21.8]}
21. Rg1 {[%clk 0:01:28.5]} 21... Bh4 {[%clk 0:01:14.7]} 22. Rg2 {[%clk
0:01:18.3]} 22... Nd4 {[%clk 0:01:15.5]} 23. Bd2 {[%clk 0:01:10.6]} 23... d5
{[%clk 0:00:56.5]} 24. Rc1 {[%clk 0:01:07.8]} 24... Rf3 {[%clk 0:00:54.4]} 25.
Rxc5 {[%clk 0:00:53.7]} 25... Rxe3+ {[%clk 0:00:55.2]} 26. Bxe3 {[%clk
0:00:55.6]} 26... Nf3+ {[%clk 0:00:56.7]} 27. Ke2 {[%clk 0:00:53]} 27... d4
{[%clk 0:00:51.6]} 28. Bc4 {[%clk 0:00:50.6]} 28... Qf6 {[%clk 0:00:40.8]} 29.
Rd5+ {[%clk 0:00:51.6]} 29... Ke7 {[%clk 0:00:30.1]} 30. Bc1 {[%clk 0:00:50.6]}
30... e4 {[%clk 0:00:25.5]} 31. Rg4 {[%clk 0:00:43.8]} 31... Ng1+ {[%clk
0:00:24.1]} 32. Kd1 {[%clk 0:00:45.2]} 32... Qf3+ {[%clk 0:00:23.2]} 33. Kc2
{[%clk 0:00:41.5]} 33... Qxg4 {[%clk 0:00:24.3]} 34. Rxd4 {[%clk 0:00:39.3]}
34... Bxf2 {[%clk 0:00:25.2]} 35. Rd5 {[%clk 0:00:36.4]} 35... e3 {[%clk
0:00:24.6]} 36. Nb6 {[%clk 0:00:26.3]} 36... e2 {[%clk 0:00:22.1]} 37. Bg5+
{[%clk 0:00:23.1]} 37... Qxg5 {[%clk 0:00:17.6]} 38. Rxg5 {[%clk 0:00:25]} 38...
e1=Q {[%clk 0:00:18.8]} 39. Rxg7+ {[%clk 0:00:20.8]} 39... Kf6 {[%clk
0:00:19.2]} 40. Rf7+ {[%clk 0:00:18.7]} 40... Kg6 {[%clk 0:00:20.6]} 41. Nd5
{[%clk 0:00:19]} 41... Kxf7 {[%clk 0:00:20]} 42. Nxb4+ {[%clk 0:00:19.3]} 42...
Kg7 {[%clk 0:00:20.3]} 43. Nd3 {[%clk 0:00:21.2]} 43... Qe3 {[%clk 0:00:21.2]}
0-1

[Event "*** Titled Tuesday Blitz"]
[Site "Chess.com"]
[Date "2018.08.07"]
[Round "4"]
[White "David_Klein"]
[Black "OparinGrigoriy"]
[Result "0-1"]
[WhiteElo "2512"]
[BlackElo "2877"]
[TimeControl "180+2"]
[EndTime "13:49:01 PDT"]
[Termination "OparinGrigoriy won by checkmate"]

1. b3 {[%clk 0:03:01.9]} 1... d5 {[%clk 0:02:57.3]} 2. Bb2 {[%clk 0:03:02.8]}
2... Bf5 {[%clk 0:02:57.3]} 3. Nf3 {[%clk 0:03:03.5]} 3... c6 {[%clk 0:02:58.6]}
4. e3 {[%clk 0:03:03.8]} 4... Nd7 {[%clk 0:02:59.3]} 5. c4 {[%clk 0:03:04.9]}
5... e6 {[%clk 0:02:54.3]} 6. Nc3 {[%clk 0:03:05.4]} 6... h6 {[%clk 0:02:54.8]}
7. Be2 {[%clk 0:02:59.2]} 7... Ngf6 {[%clk 0:02:55.8]} 8. O-O {[%clk 0:02:50.7]}
8... Bd6 {[%clk 0:02:56.9]} 9. Nd4 {[%clk 0:02:39.4]} 9... Bh7 {[%clk
0:02:56.6]} 10. cxd5 {[%clk 0:02:40.5]} 10... exd5 {[%clk 0:02:54.5]} 11. f4
{[%clk 0:02:36.2]} 11... Qe7 {[%clk 0:02:55.1]} 12. Kh1 {[%clk 0:02:35.1]} 12...
Nc5 {[%clk 0:02:45.2]} 13. f5 {[%clk 0:02:21.5]} 13... Nce4 {[%clk 0:02:35.9]}
14. Nxe4 {[%clk 0:01:42.6]} 14... Nxe4 {[%clk 0:02:36.2]} 15. g3 {[%clk
0:01:43.5]} 15... O-O-O {[%clk 0:02:30]} 16. Rc1 {[%clk 0:01:41.7]} 16... Kb8
{[%clk 0:02:31.1]} 17. Rxc6 {[%clk 0:01:41.6]} 17... h5 {[%clk 0:02:22.6]} 18.
Rc2 {[%clk 0:01:24]} 18... h4 {[%clk 0:02:22.5]} 19. g4 {[%clk 0:01:14.1]} 19...
Bg8 {[%clk 0:02:08.9]} 20. f6 {[%clk 0:00:57]} 20... gxf6 {[%clk 0:00:59.4]} 21.
Nf5 {[%clk 0:00:57.6]} 21... Qd7 {[%clk 0:00:58]} 22. d3 {[%clk 0:00:49.5]}
22... Ng3+ {[%clk 0:00:37.2]} 23. hxg3 {[%clk 0:00:46.1]} 23... hxg3+ {[%clk
0:00:37.9]} 24. Kg1 {[%clk 0:00:47]} 24... g2 {[%clk 0:00:19.2]} 25. Kxg2 {[%clk
0:00:45.9]} 25... Rh2+ {[%clk 0:00:18.5]} 26. Kg1 {[%clk 0:00:43.1]} 26... Bh7
{[%clk 0:00:19.8]} 27. Nxd6 {[%clk 0:00:34.9]} 27... Qxd6 {[%clk 0:00:21]} 28.
Rf4 {[%clk 0:00:32.1]} 28... Rh3 {[%clk 0:00:22.1]} 29. Bxf6 {[%clk 0:00:16.4]}
29... Re8 {[%clk 0:00:12.3]} 30. d4 {[%clk 0:00:11.7]} 30... Bxc2 {[%clk
0:00:09.3]} 31. Qxc2 {[%clk 0:00:12.6]} 31... Ka8 {[%clk 0:00:10.3]} 32. Be5
{[%clk 0:00:13.1]} 32... Qh6 {[%clk 0:00:11.5]} 33. Bf3 {[%clk 0:00:10.1]} 33...
f6 {[%clk 0:00:07.3]} 34. Bxf6 {[%clk 0:00:02.3]} 34... Rg3+ {[%clk 0:00:08.1]}
35. Kf2 {[%clk 0:00:02.6]} 35... Qh2+ {[%clk 0:00:08.4]} 36. Kf1 {[%clk
0:00:03.7]} 36... Qxc2 {[%clk 0:00:09.1]} 37. Bxd5 {[%clk 0:00:05]} 37... a6
{[%clk 0:00:06.4]} 38. Be5 {[%clk 0:00:05.6]} 38... Qh2 {[%clk 0:00:07.2]} 39.
Rf7 {[%clk 0:00:06.3]} 39... Rg1# {[%clk 0:00:08.3]} 0-1

[Event "*** Titled Tuesday Blitz"]
[Site "Chess.com"]
[Date "2018.08.07"]
[Round "4"]
[White "MFBerna"]
[Black "Mikhail_Golubev"]
[Result "0-1"]
[WhiteElo "2280"]
[BlackElo "2427"]
[TimeControl "180+2"]
[EndTime "13:49:03 PDT"]
[Termination "Mikhail_Golubev won by resignation"]

1. e4 {[%clk 0:03:01.9]} 1... c5 {[%clk 0:02:59.7]} 2. Nf3 {[%clk 0:03:02.3]}
2... d6 {[%clk 0:03:00.6]} 3. d4 {[%clk 0:03:03.8]} 3... cxd4 {[%clk 0:03:01]}
4. Nxd4 {[%clk 0:03:05.4]} 4... Nf6 {[%clk 0:03:01.3]} 5. Nc3 {[%clk 0:03:06.8]}
5... g6 {[%clk 0:03:00.7]} 6. Be2 {[%clk 0:03:07.7]} 6... Bg7 {[%clk 0:03:00.1]}
7. O-O {[%clk 0:03:08.9]} 7... O-O {[%clk 0:03:00.9]} 8. Re1 {[%clk 0:03:09.6]}
8... Nc6 {[%clk 0:02:58.2]} 9. Nb3 {[%clk 0:03:10.9]} 9... Be6 {[%clk
0:02:54.7]} 10. Bg5 {[%clk 0:03:12]} 10... d5 {[%clk 0:02:47.7]} 11. Bxf6 {[%clk
0:02:58.6]} 11... Bxf6 {[%clk 0:02:47.6]} 12. exd5 {[%clk 0:02:26.8]} 12... Bxc3
{[%clk 0:02:47.5]} 13. dxe6 {[%clk 0:02:13.6]} 13... Bxe1 {[%clk 0:02:45.8]} 14.
exf7+ {[%clk 0:02:13.4]} 14... Rxf7 {[%clk 0:02:36.2]} 15. Qxe1 {[%clk
0:02:14.6]} 15... Ne5 {[%clk 0:02:16.9]} 16. Rd1 {[%clk 0:02:06.4]} 16... Qb6
{[%clk 0:02:16.8]} 17. Rd5 {[%clk 0:01:55.3]} 17... Qe6 {[%clk 0:02:05.3]} 18.
Qd2 {[%clk 0:01:22.7]} 18... Raf8 {[%clk 0:01:58.1]} 19. Nc5 {[%clk 0:01:12.9]}
19... Qf5 {[%clk 0:01:46.5]} 20. f4 {[%clk 0:00:55.2]} 20... Qxf4 {[%clk
0:01:08.9]} 21. Qxf4 {[%clk 0:00:57.1]} 21... Rxf4 {[%clk 0:01:09.7]} 22. Rxe5
{[%clk 0:00:58.2]} 22... Rc8 {[%clk 0:01:07.1]} 23. Nd3 {[%clk 0:00:51.6]} 23...
Ra4 {[%clk 0:01:04.4]} 24. c3 {[%clk 0:00:46.2]} 24... Kf7 {[%clk 0:00:59.4]}
25. a3 {[%clk 0:00:44.5]} 25... Kf6 {[%clk 0:00:59.1]} 26. Re3 {[%clk
0:00:43.7]} 26... Ra5 {[%clk 0:00:58.6]} 27. Bf3 {[%clk 0:00:44.1]} 27... b6
{[%clk 0:00:57.1]} 28. Nf4 {[%clk 0:00:44.4]} 28... Rcc5 {[%clk 0:00:47.4]} 29.
b4 {[%clk 0:00:41]} 29... Re5 {[%clk 0:00:48.2]} 30. Rd3 {[%clk 0:00:35.4]}
30... Rxa3 {[%clk 0:00:46.8]} 31. Nd5+ {[%clk 0:00:34.4]} 31... Kf7 {[%clk
0:00:47.2]} 32. h4 {[%clk 0:00:25.5]} 32... a5 {[%clk 0:00:48]} 33. bxa5 {[%clk
0:00:20.9]} 33... bxa5 {[%clk 0:00:44.7]} 34. Rd4 {[%clk 0:00:22.1]} 34... a4
{[%clk 0:00:43.5]} 35. Rf4+ {[%clk 0:00:22.7]} 35... Kg7 {[%clk 0:00:42.6]} 36.
Kh2 {[%clk 0:00:20]} 36... Ra1 {[%clk 0:00:39.5]} 37. Nb6 {[%clk 0:00:08.5]}
37... a3 {[%clk 0:00:40.1]} 38. Ra4 {[%clk 0:00:09.9]} 38... Rc5 {[%clk
0:00:34.9]} 39. Nc4 {[%clk 0:00:07.3]} 39... a2 {[%clk 0:00:34]} 40. Kg3 {[%clk
0:00:03.7]} 40... Rxc4 {[%clk 0:00:34.4]} 41. Rxc4 {[%clk 0:00:04.3]} 41... Rc1
{[%clk 0:00:34.5]} 42. Ra4 {[%clk 0:00:05.5]} 42... a1=Q {[%clk 0:00:34.3]} 43.
Rxa1 {[%clk 0:00:06.5]} 43... Rxa1 {[%clk 0:00:34.8]} 44. c4 {[%clk 0:00:07.9]}
44... Kf6 {[%clk 0:00:33.1]} 45. Kf4 {[%clk 0:00:08.8]} 45... Rc1 {[%clk
0:00:31]} 46. Bd5 {[%clk 0:00:08.9]} 46... e6 {[%clk 0:00:31.1]} 0-1

[Event "*** Titled Tuesday Blitz"]
[Site "Chess.com"]
[Date "2018.08.07"]
[Round "4"]
[White "Margency"]
[Black "ozates"]
[Result "1-0"]
[WhiteElo "2725"]
[BlackElo "2484"]
[TimeControl "180+2"]
[EndTime "13:49:07 PDT"]
[Termination "Margency won by resignation"]

1. e4 {[%clk 0:03:01.9]} 1... c5 {[%clk 0:03:01.1]} 2. Nf3 {[%clk 0:03:02.4]}
2... Nc6 {[%clk 0:03:02.3]} 3. Bb5 {[%clk 0:03:01.9]} 3... g6 {[%clk 0:03:03]}
4. Bxc6 {[%clk 0:03:02.4]} 4... bxc6 {[%clk 0:03:04.9]} 5. O-O {[%clk
0:03:02.2]} 5... Bg7 {[%clk 0:03:06.3]} 6. Re1 {[%clk 0:03:02.8]} 6... Nh6
{[%clk 0:03:07.8]} 7. c3 {[%clk 0:03:02.7]} 7... O-O {[%clk 0:03:08.6]} 8. d4
{[%clk 0:03:03]} 8... cxd4 {[%clk 0:03:10.5]} 9. cxd4 {[%clk 0:03:04]} 9... d5
{[%clk 0:03:11.5]} 10. e5 {[%clk 0:03:04.2]} 10... f6 {[%clk 0:03:12.6]} 11. h3
{[%clk 0:02:50.8]} 11... Nf7 {[%clk 0:03:13.3]} 12. exf6 {[%clk 0:02:45.2]}
12... exf6 {[%clk 0:03:12.1]} 13. Nc3 {[%clk 0:02:41.9]} 13... g5 {[%clk
0:03:09.2]} 14. b3 {[%clk 0:02:28.2]} 14... g4 {[%clk 0:03:05.3]} 15. hxg4
{[%clk 0:02:27.9]} 15... Bxg4 {[%clk 0:03:07.2]} 16. Qd3 {[%clk 0:02:28.4]}
16... Qd7 {[%clk 0:02:52.4]} 17. Na4 {[%clk 0:02:21.3]} 17... Nd6 {[%clk
0:02:27.5]} 18. Nc5 {[%clk 0:02:08.7]} 18... Qf7 {[%clk 0:02:16.7]} 19. Bf4
{[%clk 0:02:07.4]} 19... Bf5 {[%clk 0:01:54]} 20. Qa6 {[%clk 0:01:51.9]} 20...
Ne4 {[%clk 0:01:54.7]} 21. Nh4 {[%clk 0:01:36.6]} 21... Nxc5 {[%clk 0:01:46.2]}
22. dxc5 {[%clk 0:01:37.2]} 22... Bd7 {[%clk 0:01:41.6]} 23. Rad1 {[%clk
0:01:15.8]} 23... Rfe8 {[%clk 0:01:25.9]} 24. Qb7 {[%clk 0:01:07.6]} 24... Rxe1+
{[%clk 0:01:19.4]} 25. Rxe1 {[%clk 0:01:08.2]} 25... Re8 {[%clk 0:01:21.2]} 26.
Rxe8+ {[%clk 0:01:06.3]} 26... Qxe8 {[%clk 0:01:23.1]} 27. Qxa7 {[%clk
0:00:54.3]} 27... Qe1+ {[%clk 0:01:21.2]} 28. Kh2 {[%clk 0:00:54.9]} 28... Qxf2
{[%clk 0:01:21.6]} 29. Bg3 {[%clk 0:00:54.2]} 29... Qe3 {[%clk 0:00:27.2]} 30.
Qxd7 {[%clk 0:00:51.7]} 30... Qxc5 {[%clk 0:00:28]} 31. Qe8+ {[%clk 0:00:40.5]}
31... Bf8 {[%clk 0:00:28.3]} 32. Qe6+ {[%clk 0:00:41.4]} 32... Kg7 {[%clk
0:00:27.8]} 33. Nf5+ {[%clk 0:00:41.8]} 33... Kg6 {[%clk 0:00:28.6]} 34. Bd6
{[%clk 0:00:35]} 34... Bxd6+ {[%clk 0:00:21.7]} 35. Nxd6 {[%clk 0:00:36]} 35...
Qd4 {[%clk 0:00:14.7]} 36. Qg8+ {[%clk 0:00:35]} 36... Kh5 {[%clk 0:00:12]} 37.
Qxh7+ {[%clk 0:00:33.3]} 37... Kg5 {[%clk 0:00:13.3]} 38. Qf5+ {[%clk
0:00:33.9]} 38... Kh6 {[%clk 0:00:14.4]} 39. Qh3+ {[%clk 0:00:30.3]} 39... Kg6
{[%clk 0:00:14.7]} 40. Qg3+ {[%clk 0:00:30.3]} 40... Kh5 {[%clk 0:00:15.2]} 41.
Nf5 {[%clk 0:00:28.5]} 41... Qe4 {[%clk 0:00:15]} 42. Qf3+ {[%clk 0:00:26.5]}
42... Kg5 {[%clk 0:00:15]} 43. Qxe4 {[%clk 0:00:26.5]} 43... dxe4 {[%clk
0:00:16.5]} 44. Nd4 {[%clk 0:00:27.8]} 44... e3 {[%clk 0:00:15.5]} 45. Kg3
{[%clk 0:00:27.7]} 45... f5 {[%clk 0:00:14.4]} 46. Kf3 {[%clk 0:00:28.5]} 1-0